bitfinex-derivatives/quotes_SOLF0:USTF0_20250329
["timestamp","ask_amount","ask_price","bid_price","bid_amount"]
[1743249776475,14.4378341,125.41,125.34,41.6418]
[1743249776686,14.4378341,125.41,125.34,33.66]
[1743249776886,7.9792,125.39,125.34,33.66]
[1743249777088,8.03258011,125.39,125.36,0.05566384]
[1743249779788,8.03258011,125.39,125.36,8.03646384]
[1743249779990,0.05338011,125.39,125.36,8.03646384]
[1743249780589,8.03258011,125.39,125.36,0.05566384]
[1743249781388,0.05338011,125.39,125.36,8.03616384]
[1743249782690,8.03238011,125.39,125.36,0.05566384]
[1743249782885,0.05338011,125.39,125.36,0.05566384]
[1743249783391,7.9796,125.38,125.36,0.05566384]
[1743249783784,0.05338011,125.39,125.36,0.05566384]
[1743249784291,8.03238011,125.39,125.36,0.05566384]
[1743249784492,0.05338011,125.39,125.36,0.05566384]
[1743249784892,8.03268011,125.39,125.36,0.05566384]
[1743249785291,7.9796,125.38,125.36,0.05566384]
[1743249786093,8.03258011,125.39,125.36,0.05566384]
[1743249787494,7.9796,125.38,125.36,0.05566384]
[1743249788097,8.03258011,125.39,125.36,0.05566384]
[1743249788289,0.05338011,125.39,125.36,0.05566384]
[1743249789990,7.9799,125.38,125.36,0.05566384]
[1743249793294,14.4378341,125.37,125.28,137.04733854]
[1743249793503,14.4378341,125.33,125.29,41.6720669]
[1743249793694,48.0778341,125.33,125.29,41.6720669]
[1743249793895,48.0778341,125.33,125.29,19.35130984]
[1743249794198,14.4378341,125.31,125.28,137.04733854]
[1743249794404,14.4378341,125.33,125.29,88.39409683]
[1743249794595,33.7000895,125.31,125.29,88.39409683]
[1743249795094,7.9846,125.3,125.29,88.39409683]
[1743249798001,7.9853,125.29,125.28,0.05900363]
[1743249798393,33.7000895,125.31,125.28,0.05900363]
[1743249798601,7.9853,125.29,125.28,0.05900363]
[1743249799199,22.4231341,125.29,125.28,0.05900363]
[1743249799397,7.9884,125.25,125.21,41.6286]
[1743249799597,7.9884,125.25,125.22,1.43589309]
[1743249799898,14.4378341,125.29,125.21,41.6286]
[1743249800103,14.4378341,125.29,125.22,15.87371723]
[1743249800401,14.4378341,125.29,125.22,14.4378341]
[1743249800601,0.0592876,125.27,125.24,0.06020921]
[1743249800899,14.4378341,125.33,125.24,48.13804331]
[1743249801102,14.4378341,125.33,125.26,7.9868]
[1743249801301,14.4378341,125.33,125.27,37.6525]
[1743249801704,14.4378341,125.33,125.27,33.64]
[1743249801995,14.4378341,125.33,125.29,0.05078428]
[1743249801996,0.05986952,125.31,125.29,0.05078428]
[1743249802198,14.4378341,125.3,125.29,0.05078428]
[1743249802403,22.4224341,125.3,125.29,0.05078428]
[1743249802601,22.4224341,125.3,125.29,8.428e-05]
[1743249802795,22.4178341,125.3,125.24,33.62]
[1743249803001,7.9878,125.25,125.24,33.62]
[1743249803499,7.9878,125.25,125.23,4.0125]
[1743249803900,8.04455626,125.25,125.23,4.07278004]
[1743249804098,7.9885,125.24,125.23,4.07278004]
[1743249804401,7.9885,125.24,125.23,0.06028004]
[1743249812315,14.49459036,125.25,125.19,3.9893]
[1743249812514,14.4378341,125.23,125.19,3.9893]
[1743249813108,7.9914,125.2,125.16,45.3612]
[1743249813513,0.05640634,125.19,125.17,0.05048904]
[1743249814212,8.04830634,125.19,125.17,0.05048904]
[1743249814719,0.05640634,125.19,125.17,0.05048904]
[1743249816908,8.04810634,125.19,125.17,0.05048904]
[1743249817614,0.05640634,125.19,125.17,0.05048904]
[1743249818716,8.04820634,125.19,125.17,0.05048904]
[1743249818917,0.05640634,125.19,125.17,0.05048904]
[1743249821116,0.05640634,125.19,125.17,8.04308904]
[1743249821418,0.05640634,125.19,125.17,0.05048904]
[1743249822120,9.31666317,125.19,125.17,0.05048904]
[1743249822320,9.26025683,125.18,125.17,0.05048904]
[1743249822524,17.25255683,125.18,125.17,0.05048904]
[1743249822917,22.47177079,125.18,125.17,0.05048904]
[1743249823117,14.47947079,125.18,125.13,33.62]
[1743249823323,14.47947079,125.16,125.12,3.8407]
[1743249823617,7.9946,125.15,125.12,3.8407]
[1743249823821,14.47947079,125.16,125.12,3.8407]
[1743249824011,14.47947079,125.16,125.09,41.6177]
[1743249824216,7.9953,125.14,125.1,1.43724513]
[1743249824521,8.04568513,125.14,125.11,0.05254693]
[1743249824716,35.95515592,125.14,125.11,0.05254693]
[1743249825322,27.95985592,125.14,125.11,0.05254693]
[1743249825919,13.48038513,125.14,125.11,0.05254693]
[1743249826122,13.48038513,125.14,125.11,33.67254693]
[1743249826622,13.48038513,125.14,125.12,3.8737]
[1743249827120,13.48038513,125.14,125.13,7.9955]
[1743249827623,7.30148513,125.14,125.13,7.9955]
[1743249828526,22.47207079,125.18,125.14,7.9947]
[1743249828723,13.73,125.16,125.14,7.9947]
[1743249829024,13.73,125.16,125.15,0.05479297]
[1743249831123,21.7236,125.16,125.15,0.05479297]
[1743249831322,28.20947079,125.16,125.11,3.7187]
[1743249831520,14.47947079,125.14,125.06,18.19257079]
[1743249831727,14.47947079,125.14,125.07,33.6]
[1743249832025,14.47947079,125.14,125.08,1.43732075]
[1743249832524,0.05048241,125.12,125.1,0.05107179]
[1743249833328,8.04708241,125.12,125.1,0.05107179]
[1743249833927,0.05048241,125.12,125.1,0.05107179]
[1743249835129,0.05048241,125.12,125.1,8.04817179]
[1743249835330,0.05048241,125.12,125.1,0.05107179]
[1743249835730,0.05048241,125.12,125.11,7.9968]
[1743249836227,0.05048241,125.12,125.1,0.05107179]
[1743249836228,0.05048241,125.12,125.1,8.04817179]
[1743249837432,0.05048241,125.12,125.1,0.05107179]
[1743249838534,8.04668241,125.12,125.1,0.05107179]
[1743249838729,0.05048241,125.12,125.1,0.05107179]
[1743249840436,0.05048241,125.12,125.1,8.04847179]
[1743249841240,0.05048241,125.12,125.1,0.05107179]
[1743249841838,7.9968,125.11,125.1,0.05107179]
[1743249843244,7.9984,125.09,124.99,412.26004525]
[1743249843549,22.47787079,125.09,125.05,8.0002]
[1743249843941,7.9977,125.1,125.01,56.07517079]
[1743249844142,14.47947079,125.11,125.07,7.9993]
[1743249844342,14.47947079,125.11,125.07,33.58]
[1743249844649,0.05922111,125.1,125.09,7.998]
[1743249844850,19.0,125.13,125.08,7.87035691]
[1743249845347,19.0,125.13,125.11,7.9964]
[1743249845548,18.24,125.12,125.11,7.9964]
[1743249845942,19.05322341,125.13,125.11,14.47947079]
[1743249846644,19.05322341,125.13,125.12,7.9961]
[1743249846845,12.87422341,125.13,125.12,41.5761]
[1743249847045,3.25322341,125.13,125.12,41.5761]
[1743249848547,3.25322341,125.13,125.12,33.58]
[1743249849351,3.25322341,125.13,125.12,41.5761]
[1743249852348,3.25322341,125.13,125.1,0.0532375]
[1743249852748,3.25322341,125.13,125.1,8.0502375]
[1743249853152,3.25322341,125.13,125.1,0.0532375]
[1743249854053,11.24872341,125.13,125.1,0.0532375]
[1743249854351,3.25322341,125.13,125.1,0.0532375]
[1743249855848,11.24872341,125.13,125.1,0.0532375]
[1743249856447,7.9968,125.11,125.1,0.0532375]
[1743249857454,7.999,125.08,125.05,33.56]
[1743249858557,8.05825378,125.08,125.05,33.61948885]
[1743249859352,7.9995,125.07,125.05,33.61948885]
[1743249859551,7.9995,125.07,125.05,0.05948885]
[1743249859857,8.05825378,125.08,125.05,0.05948885]
[1743249860155,29.86825378,125.08,125.05,0.05948885]
[1743249860557,21.86925378,125.08,125.05,0.05948885]
[1743249860856,21.86925378,125.08,125.05,8.06008885]
[1743249861852,21.86925378,125.08,125.05,0.05948885]
[1743249862052,29.86805378,125.08,125.05,0.05948885]
[1743249862346,44.73805378,125.08,125.05,0.05948885]
[1743249862647,7.9994,125.07,125.05,0.05948885]
[1743249863051,36.73925378,125.08,125.05,0.05948885]
[1743249863248,44.73825378,125.08,125.05,0.05948885]
[1743249864056,47.93825378,125.08,125.05,0.05948885]
[1743249864456,39.93925378,125.08,125.05,0.05948885]
[1743249864960,7.9998,125.07,125.05,0.05948885]
[1743249866052,8.0,125.06,125.05,0.05948885]
[1743249866250,14.47947079,125.07,125.02,1.43824706]
[1743249866454,14.47947079,125.07,125.02,33.56]
[1743249866855,8.001,125.05,125.0,33.17182482]
[1743249867055,8.001,125.05,125.01,34.97840227]
[1743249867256,8.001,125.05,125.01,41.5431]
[1743249867459,0.05279418,125.04,125.02,0.05329397]
[1743249867859,0.05279418,125.04,125.02,8.05539397]
[1743249868159,0.05279418,125.04,125.02,0.05329397]
[1743249868862,8.05409418,125.04,125.02,0.05329397]
[1743249869363,0.05279418,125.04,125.02,0.05329397]
[1743249870255,0.05279418,125.04,125.02,8.05569397]
[1743249870460,0.05279418,125.04,125.02,0.05329397]
[1743249871058,0.05279418,125.04,125.03,8.0019]
[1743249871257,58.44,125.08,125.03,14.47947079]
[1743249871452,58.44,125.08,125.04,33.54]
[1743249871962,14.47947079,125.07,124.99,15.87074733]
[1743249872164,14.47947079,125.05,125.0,1.43837962]
[1743249872464,0.05200997,125.04,125.02,0.05496053]
[1743249872858,14.47947079,125.03,124.97,41.5453]
[1743249873160,14.47947079,125.03,124.98,1.4386148]
[1743249873761,8.0029,125.02,124.97,41.17712482]
[1743249873956,8.0029,125.02,124.99,0.05578891]
[1743249874161,8.06311288,125.02,124.99,0.05578891]
[1743249874364,8.0036,125.01,124.99,0.05578891]
[1743249874661,0.06021288,125.02,124.99,0.05578891]
[1743249874870,0.06021288,125.02,124.99,33.59578891]
[1743249875066,0.06021288,125.02,124.99,41.59988891]
[1743249875460,0.06021288,125.02,124.99,33.59578891]
[1743249877170,0.06021288,125.02,124.99,41.59998891]
[1743249880072,0.06021288,125.02,124.99,33.59578891]
[1743249880766,0.06021288,125.02,124.99,41.60018891]
[1743249880968,0.06021288,125.02,124.99,33.59578891]
[1743249882367,8.06281288,125.02,124.99,33.59578891]
[1743249882970,0.06021288,125.02,124.99,41.60018891]
[1743249884171,0.06021288,125.02,125.0,8.0038]
[1743249884372,0.06021288,125.02,124.99,33.59578891]
[1743249884669,0.06021288,125.02,124.99,41.59988891]
[1743249888469,17.21021288,125.02,124.99,41.59988891]
[1743249889372,25.21281288,125.02,124.99,33.59578891]
[1743249893775,17.21021288,125.02,124.99,41.60018891]
[1743249894075,17.21021288,125.02,124.99,33.59578891]
[1743249894276,17.21021288,125.02,124.99,41.59988891]
[1743249896069,25.21271288,125.02,124.99,33.59578891]
[1743249896579,34.50038328,125.02,124.99,33.59578891]
[1743249896778,9.2876704,125.01,124.99,33.59578891]
[1743249896972,9.2876704,125.0,124.99,33.59578891]
[1743249897278,9.2876704,125.0,124.99,0.05578891]
[1743249897579,17.2911704,125.01,124.99,0.05578891]
[1743249898376,17.2914704,125.0,124.99,0.05578891]
[1743249899274,9.2876704,125.0,124.99,0.05578891]
[1743249900079,17.2914704,125.0,124.99,0.05578891]
[1743249900274,9.2876704,125.0,124.93,121.56592165]
[1743249900482,9.2876704,124.96,124.93,121.56592165]
[1743249900872,17.2952704,124.94,124.93,121.56592165]
[1743249901581,9.2876704,124.94,124.92,121.61943372]
[1743249902981,8.0077,124.94,124.92,121.61943372]
[1743249903380,0.06133741,124.95,124.92,121.61943372]
[1743249903778,0.06133741,124.95,124.92,155.11943372]
[1743249905182,21.07133741,124.95,124.92,155.11943372]
[1743249905386,21.07133741,124.95,124.92,159.35113372]
[1743249905679,21.07133741,124.95,124.93,8.0083]
[1743249905872,21.07133741,124.95,124.92,126.1793089]
[1743249906074,21.07133741,124.95,124.92,37.78521207]
[1743249906281,21.07133741,124.95,124.92,41.56221207]
[1743249906483,21.07133741,124.95,124.92,33.55351207]
[1743249906779,29.07843741,124.95,124.92,33.55351207]
[1743249907171,21.07133741,124.95,124.92,33.55351207]
[1743249907686,21.07133741,124.95,124.92,0.05351207]
[1743249907879,21.07133741,124.95,124.92,33.55351207]
[1743249908074,8.0077,124.94,124.92,33.55351207]
[1743249908282,21.07133741,124.95,124.92,33.55351207]
[1743249909385,21.07133741,124.95,124.92,41.56221207]
[1743249909585,21.07133741,124.95,124.92,33.55351207]
[1743249910084,21.07133741,124.95,124.93,8.0079]
[1743249910282,21.07133741,124.95,124.92,33.55351207]
[1743249910684,21.07133741,124.95,124.93,8.0081]
[1743249912083,21.07133741,124.95,124.92,41.56211207]
[1743249912289,21.07133741,124.95,124.92,33.55351207]
[1743249913785,21.07133741,124.95,124.92,41.56191207]
[1743249914483,21.07133741,124.95,124.92,48.08523384]
[1743249914688,21.07133741,124.95,124.93,1.43933465]
[1743249915787,21.07133741,124.95,124.94,8.0076]
[1743249916488,21.07133741,124.95,124.93,8.008]
[1743249917084,21.07133741,124.95,124.92,33.55351207]
[1743249917282,21.07133741,124.95,124.92,48.08523384]
[1743249918185,21.07133741,124.95,124.94,8.0076]
[1743249918990,21.07133741,124.95,124.93,41.4879]
[1743249920484,21.07133741,124.95,124.94,8.0076]
[1743249921287,21.07133741,124.95,124.93,41.488]
[1743249924091,21.07133741,124.95,124.94,8.0076]
[1743249926893,21.07133741,124.95,124.94,17.30162892]
[1743249927093,0.06133741,124.95,124.94,17.30162892]
[1743249930489,51.89,124.96,124.95,8.007]
[1743249930689,51.89,124.96,124.95,17.30102892]
[1743249930885,51.89,124.96,124.95,22.52321291]
[1743249931089,51.89,124.96,124.95,23.96232422]
[1743249931289,14.31,124.97,124.96,8.0064]
[1743249931594,0.06102476,124.98,124.96,33.44]
[1743249931892,56.42661291,125.05,124.98,8.005]
[1743249932294,0.05319053,125.03,125.0,0.05208369]
[1743249932496,8.0026,125.02,125.0,0.05208369]
[1743249932693,14.56940344,125.03,125.0,0.05208369]
[1743249933493,8.0029,125.02,125.0,0.05208369]
[1743249937896,8.0031,125.01,125.0,0.05208369]
[1743249938297,8.0029,125.02,125.0,0.05208369]
[1743249939099,14.56940344,125.03,125.0,0.05208369]
[1743249939298,0.05319053,125.03,125.0,0.05208369]
[1743249939493,14.56940344,125.03,125.0,0.05208369]
[1743249939699,8.003,125.02,125.0,0.05208369]
[1743249940793,14.56940344,125.03,125.0,0.05208369]
[1743249941399,22.57160344,125.03,125.0,0.05208369]
[1743249941894,25.77160344,125.03,125.0,0.05208369]
[1743249942096,25.77160344,125.03,125.0,8.05578369]
[1743249942300,25.77160344,125.03,125.0,0.05208369]
[1743249942701,36.33940344,125.03,125.0,0.05208369]
[1743249943700,21.82319053,125.03,125.0,0.05208369]
[1743249943896,21.82319053,125.03,125.01,8.0031]
[1743249944602,21.82319053,125.03,125.02,8.0025]
[1743249944806,21.82319053,125.03,125.0,0.05208369]
[1743249945100,21.82319053,125.03,125.0,8.05548369]
[1743249945301,21.82319053,125.03,125.0,0.05208369]
[1743249945505,42.87319053,125.03,125.0,0.05208369]
[1743249946303,42.87319053,125.03,125.01,8.0031]
[1743249946498,42.87319053,125.03,125.02,33.4]
[1743249946707,42.87319053,125.03,125.02,41.4025]
[1743249947408,42.87319053,125.03,125.02,33.4]
[1743249952009,42.87319053,125.03,125.02,41.4025]
[1743249953109,42.87319053,125.03,125.02,50.68351643]
[1743249955711,42.87319053,125.03,125.02,33.4]
[1743249958010,42.87319053,125.03,125.0,9.33310012]
[1743249958209,42.87319053,125.03,125.0,33.41208369]
[1743249960120,50.87509053,125.03,125.0,0.05208369]
[1743249961222,42.87319053,125.03,125.0,0.05208369]
[1743249962126,42.87319053,125.03,125.01,9.28101643]
[1743249962526,42.87319053,125.03,125.02,8.0025]
[1743249963224,42.87319053,125.03,125.01,17.28381643]
[1743249963424,42.87319053,125.03,125.01,9.28101643]
[1743249963722,42.87319053,125.03,125.02,8.0025]
[1743249964122,42.87319053,125.03,125.02,17.28351643]
[1743249965027,39.67319053,125.03,125.02,17.28351643]
[1743249965327,39.67319053,125.03,125.02,50.62351643]
[1743249970733,21.10319053,125.03,125.02,50.62351643]
[1743249971636,0.05319053,125.03,125.02,50.62351643]
[1743249972338,15.38,125.05,125.04,8.0012]
[1743249972637,19.98,125.08,125.04,9.28101643]
[1743249972829,19.98,125.08,125.07,9.28101643]
[1743249973231,16.70061643,125.11,125.07,9.28101643]
[1743249973431,0.05426526,125.09,125.07,9.28101643]
[1743249973731,0.05426526,125.09,125.07,17.28001643]
[1743249976332,0.05426526,125.09,125.06,17.33490842]
[1743249976540,9.33528169,125.09,125.06,0.05409199]
[1743249978533,0.05426526,125.09,125.06,0.05409199]
[1743249980441,0.05426526,125.09,125.06,8.05379199]
[1743249980741,0.05426526,125.09,125.06,17.33480842]
[1743249980940,0.05426526,125.09,125.06,9.33510842]
[1743249981136,0.05426526,125.09,125.07,7.9989]
[1743249981937,0.05426526,125.09,125.07,17.27991643]
[1743249983236,0.05426526,125.09,125.08,7.9987]
[1743249983435,0.05426526,125.09,125.08,50.57971643]
[1743249984434,0.05426526,125.09,125.08,52.01729957]
[1743249985844,0.05426526,125.09,125.08,44.01859957]
[1743249986140,0.05426526,125.09,125.08,42.58101643]
[1743249986943,0.05426526,125.09,125.08,33.3]
[1743249990143,8.05226526,125.09,125.07,9.28101643]
[1743249990339,8.05226526,125.09,125.06,42.61510842]
[1743249990741,0.05426526,125.09,125.06,42.61510842]
[1743249992343,32.41,125.12,125.08,57.22101643]
[1743249992642,2.1393,125.23,125.11,57.22101643]
[1743249992847,13.12529573,125.24,125.2,9.28101643]
[1743249993146,24.54561216,125.24,125.21,33.26]
[1743249993541,15.31547459,125.24,125.21,42.60250249]
[1743249993844,48.41044071,125.24,125.21,42.60250249]
[1743249994244,48.41044071,125.24,125.22,9.28101643]
[1743249994441,48.41044071,125.24,125.23,9.28101643]
[1743249994639,44.19524071,125.24,125.23,17.27011643]
[1743249994847,44.19524071,125.24,125.23,14.45083973]
[1743249995247,44.19524071,125.24,125.21,47.77232579]
[1743249996348,44.19524071,125.24,125.22,7.9897]
[1743249996651,0.05087886,125.24,125.22,7.9897]
[1743249997452,0.05087886,125.24,125.23,7.9891]
[1743249999146,0.05087886,125.24,125.22,7.9895]
[1743249999741,0.05087886,125.24,125.23,14.45083973]
[1743249999947,18.25,125.28,125.23,14.45083973]
[1743250000147,18.25,125.28,125.24,33.24]
[1743250000344,18.25,125.28,125.25,14.45083973]
[1743250000644,14.45083973,125.32,125.25,14.45083973]
[1743250000849,47.69083973,125.34,125.25,14.45083973]
[1743250001244,0.06130258,125.28,125.26,0.05539087]
[1743250001454,0.06130258,125.28,125.27,47.69083973]
[1743250001648,0.06130258,125.28,125.27,55.67683973]
[1743250001948,2.0027,125.33,125.27,47.69083973]
[1743250002151,2.0027,125.33,125.29,14.45083973]
[1743250002344,2.0027,125.33,125.3,33.22]
[1743250002949,2.06083564,125.33,125.3,33.27735835]
[1743250003850,2.06083564,125.33,125.32,7.9834]
[1743250004550,0.05813564,125.33,125.32,7.9834]
[1743250014453,0.05813564,125.33,125.25,14.45083973]
[1743250014654,0.05813564,125.33,125.26,33.16]
[1743250014655,14.45083973,125.33,125.26,33.16]
[1743250014961,7.9837,125.32,125.26,41.1468]
[1743250015148,14.45083973,125.33,125.26,33.16]
[1743250015355,14.45083973,125.31,125.25,33.16]
[1743250015655,0.06083621,125.29,125.27,8.0439662]
[1743250015857,0.06083621,125.29,125.27,0.0574662]
[1743250016254,15.63,125.35,125.28,71.56083973]
[1743250016456,16.29,125.38,125.34,28.90167946]
[1743250016664,22.42443973,125.48,125.37,14.45083973]
[1743250016857,14.45083973,125.46,125.39,14.45083973]
[1743250017354,0.05765325,125.44,125.41,0.05648678]
[1743250017560,0.05765325,125.44,125.42,33.16]
[1743250018664,0.05765325,125.44,125.41,0.05648678]
[1743250018865,0.05765325,125.44,125.39,33.16]
[1743250019161,23.07613466,125.45,125.39,33.16]
[1743250019960,0.06141596,125.43,125.41,0.05620806]
[1743250020163,0.06141596,125.43,125.39,33.16]
[1743250020960,23.13755062,125.43,125.34,263.3]
[1743250021165,23.07613466,125.41,125.35,33.14]
[1743250021366,23.07613466,125.39,125.32,33.14]
[1743250021567,56.21613466,125.39,125.32,33.14]
[1743250021769,7.9806,125.37,125.32,33.14]
[1743250021969,56.21613466,125.39,125.28,319.43613466]
[1743250022269,7.9812,125.36,125.29,7.985]
[1743250022478,0.05214459,125.35,125.32,0.05241388]
[1743250023382,0.05214459,125.35,125.28,33.14]
[1743250023771,7.9824,125.34,125.28,33.14]
[1743250024680,0.05111254,125.32,125.3,0.05611369]
[1743250026681,0.05111254,125.32,125.26,57.60469104]
[1743250027182,7.9845,125.31,125.26,57.60469104]
[1743250027375,0.05111254,125.32,125.26,57.60469104]
[1743250027774,0.05111254,125.32,125.28,0.05214015]
[1743250028175,0.05111254,125.32,125.29,33.12]
[1743250028376,19.94,125.36,125.3,23.07613466]
[1743250028582,19.94,125.36,125.32,23.07613466]
[1743250028879,19.94,125.36,125.33,41.1026]
[1743250029576,20.00084153,125.36,125.33,33.180598]
[1743250029783,0.06084153,125.36,125.33,33.180598]
[1743250033879,0.06084153,125.36,125.34,23.07613466]
[1743250034181,0.06084153,125.36,125.35,7.9814]
[1743250035783,32.35,125.38,125.34,23.07613466]
[1743250037084,0.0559629,125.37,125.36,7.9808]
[1743250037289,0.0559629,125.37,125.36,41.0808]
[1743250037587,16.21,125.38,125.37,7.9802]
[1743250037776,33.1,125.47,125.36,56.17613466]
[1743250037977,2.0757,125.46,125.39,23.07613466]
[1743250038187,10.0503,125.46,125.41,7.9773]
[1743250038386,2.0757,125.46,125.41,7.9773]
[1743250038888,0.06149914,125.45,125.42,0.05476114]
[1743250041393,8.03699914,125.45,125.42,0.05476114]
[1743250042689,0.06149914,125.45,125.42,0.05476114]
[1743250043190,0.06149914,125.45,125.42,8.03166114]
[1743250043390,0.06149914,125.45,125.42,0.05476114]
[1743250043786,0.06149914,125.45,125.42,8.03136114]
[1743250044993,0.06149914,125.45,125.43,7.9763]
[1743250045496,0.06149914,125.45,125.42,0.05476114]
[1743250046495,0.06149914,125.45,125.42,14.46832371]
[1743250046697,0.06149914,125.45,125.43,7.976]
[1743250047191,0.06149914,125.45,125.44,7.9757]
[1743250047587,0.06149914,125.45,125.43,33.06]
[1743250048400,0.06149914,125.45,125.43,41.0359]
[1743250050589,0.06149914,125.45,125.44,7.9757]
[1743250052701,0.06149914,125.45,125.43,41.0361]
[1743250053501,0.06149914,125.45,125.44,7.9757]
[1743250054195,0.06149914,125.45,125.43,33.04]
[1743250055799,0.06149914,125.45,125.44,7.9757]
[1743250056004,0.06149914,125.45,125.43,33.04]
[1743250058108,0.06149914,125.45,125.43,41.0163]
[1743250058598,0.06149914,125.45,125.43,33.04]
[1743250059600,0.06149914,125.45,125.43,41.0161]
[1743250062410,0.06149914,125.45,125.42,22.44492371]
[1743250062709,0.06149914,125.45,125.39,33.02]
[1743250062907,35.83356257,125.46,125.39,33.02]
[1743250063108,7.9758,125.44,125.39,7.9784]
[1743250063706,0.05308804,125.43,125.4,8.02985087]
[1743250063914,0.05308804,125.43,125.4,0.05165087]
[1743250065506,0.05308804,125.43,125.42,7.977]
[1743250065709,0.05308804,125.43,125.4,0.05165087]
[1743250067713,2.21798804,125.43,125.4,0.05165087]
[1743250067914,2.21798804,125.43,125.4,8.02955087]
[1743250068716,2.21798804,125.43,125.4,0.05165087]
[1743250069616,10.19448804,125.43,125.4,0.05165087]
[1743250071013,2.21798804,125.43,125.4,8.02965087]
[1743250071218,2.21798804,125.43,125.4,14.46521344]
[1743250071518,2.21798804,125.43,125.4,0.05165087]
[1743250071719,2.21798804,125.43,125.37,7.32787]
[1743250071918,16.63155061,125.43,125.37,7.32787]
[1743250072614,7.9783,125.4,125.37,7.32787]
[1743250072919,0.05373047,125.4,125.39,0.06012593]
[1743250074918,0.05373047,125.4,125.39,8.03902593]
[1743250075113,0.05373047,125.4,125.39,0.06012593]
[1743250076119,8.03203047,125.4,125.39,0.06012593]
[1743250076523,0.05373047,125.4,125.37,40.32787]
[1743250076818,8.03223047,125.4,125.37,40.32787]
[1743250077321,0.05373047,125.4,125.37,40.32787]
[1743250077623,0.05373047,125.4,125.37,40.38919925]
[1743250078917,7.9789,125.39,125.37,40.38919925]
[1743250079318,0.05373047,125.4,125.37,40.38919925]
[1743250080016,8.03233047,125.4,125.37,40.38919925]
[1743250080720,8.03233047,125.4,125.37,48.36929925]
[1743250080917,8.03233047,125.4,125.37,15.36929925]
[1743250081222,0.05373047,125.4,125.38,7.9795]
[1743250082119,0.05373047,125.4,125.37,7.38919925]
[1743250082421,25.29373047,125.4,125.37,7.38919925]
[1743250082621,33.27223047,125.4,125.37,7.38919925]
[1743250084219,25.29373047,125.4,125.37,4.10739925]
[1743250084423,2.0956,125.39,125.33,32.98]
[1743250084625,2.0956,125.39,125.32,47.39356257]
[1743250084925,7.9806,125.37,125.33,7.9824]
[1743250085525,2.0956,125.39,125.32,47.39356257]
[1743250085526,8.03198609,125.36,125.34,0.061195]
[1743250085721,0.05108609,125.36,125.34,0.061195]
[1743250085923,0.05108609,125.36,125.34,8.042895]
[1743250086127,0.05108609,125.36,125.34,0.061195]
[1743250086820,0.05108609,125.36,125.34,9.29740982]
[1743250087127,0.05108609,125.36,125.34,17.27900982]
[1743250093832,0.05108609,125.36,125.34,9.29740982]
[1743250094030,0.05108609,125.36,125.34,0.061195]
[1743250094232,0.05108609,125.36,125.34,9.29740982]
[1743250094422,0.05108609,125.36,125.35,9.23621482]
[1743250095432,0.05108609,125.36,125.34,17.27920982]
[1743250096132,0.05108609,125.36,125.34,9.29740982]
[1743250096535,0.05108609,125.36,125.35,9.23621482]
[1743250096732,0.05108609,125.36,125.35,17.21761482]
[1743250099038,0.05108609,125.36,125.35,7.9814]
[1743250099539,0.05108609,125.36,125.34,0.061195]
[1743250104041,9.28730091,125.36,125.34,0.061195]
[1743250104441,0.05108609,125.36,125.34,0.061195]
[1743250105249,0.05108609,125.36,125.35,17.21761482]
[1743250110835,19.15,125.38,125.35,12.75345843]
[1743250111034,19.15,125.38,125.37,9.23621482]
[1743250111235,15.8673,125.38,125.37,50.13641482]
[1743250111541,19.93,125.4,125.37,42.15621482]
[1743250111741,43.42,125.4,125.39,17.21511482]
[1743250111939,43.4733774,125.4,125.39,17.21511482]
[1743250116845,43.4733774,125.4,125.38,9.23621482]
[1743250117946,43.4733774,125.4,125.38,17.21551482]
[1743250118346,43.4733774,125.4,125.38,50.11551482]
[1743250118645,9.23621482,125.39,125.37,0.05267112]
[1743250118845,13.44241482,125.39,125.34,42.40803964]
[1743250119045,9.23621482,125.38,125.34,33.17182482]
[1743250119247,13.44241482,125.39,125.34,42.40803964]
[1743250119844,21.42161482,125.39,125.34,50.38973964]
[1743250120146,0.05281682,125.38,125.35,0.05618606]
[1743250121246,0.05281682,125.38,125.35,9.29240088]
[1743250122754,0.05281682,125.38,125.35,17.27370088]
[1743250124247,0.05281682,125.38,125.36,9.23621482]
[1743250124449,0.05281682,125.38,125.36,42.13621482]
[1743250125155,0.05281682,125.38,125.37,7.9802]
[1743250126257,0.05281682,125.38,125.36,50.11671482]
[1743250129360,0.05281682,125.38,125.37,7.9802]
[1743250129858,0.05281682,125.38,125.36,50.11671482]
[1743250130160,0.05281682,125.38,125.37,9.23621482]
[1743250130556,0.05281682,125.38,125.37,17.21641482]
[1743250131258,0.05281682,125.38,125.37,7.9802]
[1743250132767,0.05281682,125.38,125.36,50.11681482]